bitfinex/quotes_BTCUSD_20240811
["timestamp","ask_amount","ask_price","bid_price","bid_amount"]
[1723382680904,0.01,60436.0,60434.0,0.16381492]
[1723382681119,0.01,60436.0,60434.0,0.27964292]
[1723382681321,0.08184646,60438.0,60434.0,0.16381492]
[1723382681706,0.01,60435.0,60434.0,0.16381492]
[1723382681869,0.01,60435.0,60434.0,0.27114297]
[1723382682548,0.01,60435.0,60431.0,0.3279481]
[1723382682549,0.01,60432.0,60431.0,0.0009141]
[1723382682925,0.01,60432.0,60431.0,0.1079741]
[1723382684220,0.01,60432.0,60431.0,0.1129741]
[1723382684467,0.11555012,60435.0,60431.0,0.0059141]
[1723382684734,0.115825,60436.0,60431.0,0.0079141]
[1723382684966,0.01,60436.0,60432.0,0.37871492]
[1723382685189,0.115823,60437.0,60432.0,0.37871492]
[1723382685407,0.01,60434.0,60433.0,0.60354681]
[1723382686694,0.01,60434.0,60433.0,0.49641]
[1723382686899,0.125828,60434.0,60433.0,0.49641]
[1723382687108,0.357485,60434.0,60433.0,0.49641]
[1723382687288,0.347485,60434.0,60433.0,0.49641]
[1723382687519,0.357485,60434.0,60433.0,0.49641]
[1723382687728,0.357485,60434.0,60433.0,0.49841]
[1723382687945,0.347485,60434.0,60433.0,0.49841]
[1723382688568,0.01,60436.0,60433.0,0.49841]
[1723382688818,0.01,60436.0,60434.0,0.2149]
[1723382689026,0.01,60436.0,60435.0,0.4964]
[1723382689236,0.19766746,60438.0,60435.0,0.4964]
[1723382689700,0.01,60436.0,60435.0,0.4964]
[1723382689920,0.19766746,60438.0,60435.0,0.4964]
[1723382690154,0.002,60436.0,60435.0,0.4964]
[1723382690590,0.01,60436.0,60435.0,0.4964]
[1723382691621,0.20266746,60438.0,60435.0,0.4964]
[1723382692101,0.01,60436.0,60435.0,0.4964]
[1723382692584,0.20266746,60438.0,60435.0,0.4964]
[1723382692813,0.115823,60437.0,60435.0,0.4964]
[1723382693275,0.002,60436.0,60435.0,0.4964]
[1723382693782,0.115823,60437.0,60435.0,0.4964]
[1723382694028,0.001,60437.0,60435.0,0.4964]
[1723382694469,0.19739034,60438.0,60435.0,0.4964]
[1723382694910,0.002,60436.0,60435.0,0.4964]
[1723382696156,0.19739034,60438.0,60435.0,0.4964]
[1723382696395,0.01,60436.0,60435.0,0.4964]
[1723382696605,0.126656,60436.0,60435.0,0.4964]
[1723382696790,0.116656,60436.0,60435.0,0.4964]
[1723382697272,0.118656,60436.0,60435.0,0.4964]
[1723382697548,0.128656,60436.0,60435.0,0.4964]
[1723382697792,0.118656,60436.0,60435.0,0.4964]
[1723382698060,0.350306,60436.0,60435.0,0.4964]
[1723382698318,0.360306,60436.0,60435.0,0.4964]
[1723382698549,0.591956,60436.0,60435.0,0.4964]
[1723382698819,0.581956,60436.0,60435.0,0.4964]
[1723382699263,0.591956,60436.0,60435.0,0.4964]
[1723382700323,0.65923357,60436.0,60435.0,0.4964]
[1723382701831,0.591956,60436.0,60435.0,0.4964]
[1723382702041,0.64924865,60436.0,60435.0,0.4964]
[1723382702253,0.65924865,60436.0,60435.0,0.4964]
[1723382702477,0.65924859,60436.0,60435.0,0.4964]
[1723382702716,1.02809859,60436.0,60435.0,0.4964]
[1723382702919,1.24136093,60436.0,60435.0,0.4964]
[1723382703142,1.65179792,60436.0,60435.0,0.4964]
[1723382703354,1.88344792,60436.0,60435.0,0.4964]
[1723382703559,1.98232942,60436.0,60435.0,0.4964]
[1723382704502,1.98232261,60436.0,60435.0,0.4964]
[1723382704965,1.98231272,60436.0,60435.0,0.4964]
[1723382705423,1.0979887,60436.0,60435.0,0.4964]
[1723382705642,1.1474256,60436.0,60435.0,0.4964]
[1723382705861,1.0979887,60436.0,60435.0,0.4964]
[1723382706317,0.8908887,60436.0,60435.0,0.4964]
[1723382706565,0.9403256,60436.0,60435.0,0.4964]
[1723382706802,1.0857256,60436.0,60435.0,0.4964]
[1723382707221,1.11042704,60436.0,60435.0,0.4964]
[1723382707444,1.0362887,60436.0,60435.0,0.4964]
[1723382708387,1.03621367,60436.0,60435.0,0.4964]
[1723382708610,1.11035201,60436.0,60435.0,0.4964]
[1723382709438,0.96495201,60436.0,60435.0,0.4964]
[1723382709645,0.89081367,60436.0,60435.0,0.4973141]
[1723382709846,0.9402417,60436.0,60435.0,0.4973141]
[1723382710052,0.89081367,60436.0,60435.0,0.4973141]
[1723382710260,0.9402417,60436.0,60435.0,0.4973141]
[1723382711762,0.9302417,60436.0,60435.0,0.4973141]
[1723382711965,0.9402444,60436.0,60435.0,0.4973141]
[1723382713281,0.9302444,60436.0,60435.0,0.4973141]
[1723382713740,0.9402444,60436.0,60435.0,0.4973141]
[1723382714415,0.89081637,60436.0,60435.0,0.4973141]
[1723382715734,0.89081243,60436.0,60435.0,0.4973141]
[1723382716185,0.94025612,60436.0,60435.0,0.4973141]
[1723382716920,1.20002751,60436.0,60435.0,0.4973141]
[1723382717142,1.27416585,60436.0,60435.0,0.4973141]
[1723382717592,3.82002751,60436.0,60435.0,0.4973141]
[1723382717813,4.28679372,60436.0,60435.0,0.4973141]
[1723382718497,3.91982751,60436.0,60435.0,0.4973141]
[1723382719229,3.90983476,60436.0,60435.0,0.4973141]
[1723382719424,4.28680094,60436.0,60435.0,0.4973141]
[1723382719996,4.27680094,60436.0,60435.0,0.4973141]
[1723382720443,4.28680094,60436.0,60435.0,0.4973141]
[1723382721067,4.27680094,60436.0,60435.0,0.4973141]
[1723382721900,3.90078602,60436.0,60435.0,0.4973141]
[1723382722106,3.60795961,60436.0,60435.0,0.4973141]
[1723382722317,3.54074577,60436.0,60435.0,0.4973141]
[1723382722996,3.443606,60436.0,60435.0,0.4973141]
[1723382723372,3.56025089,60436.0,60435.0,0.4973141]
[1723382723575,3.443606,60436.0,60435.0,0.4973141]
[1723382723776,3.51076498,60436.0,60435.0,0.4973141]
[1723382724654,3.49712192,60436.0,60435.0,0.4973141]
[1723382724858,3.43996294,60436.0,60435.0,0.4973141]
[1723382725417,3.42996294,60436.0,60435.0,0.4973141]
[1723382725645,3.51237597,60436.0,60435.0,0.4973141]
[1723382727611,3.57951199,60436.0,60435.0,0.4973141]
[1723382728039,3.56951034,60436.0,60435.0,0.4973141]
[1723382728238,3.52009731,60436.0,60435.0,0.4973141]
[1723382728470,3.53009731,60436.0,60435.0,0.4973141]
[1723382729504,3.52009731,60436.0,60435.0,0.4973141]
[1723382729683,3.64379731,60436.0,60435.0,0.4973141]
[1723382730856,3.53009731,60436.0,60435.0,0.4973141]
[1723382731530,3.52009731,60436.0,60435.0,0.4973141]
[1723382731735,3.53009731,60436.0,60435.0,0.4973141]
[1723382732170,3.46296294,60436.0,60435.0,0.4973141]
[1723382732392,3.53009272,60436.0,60435.0,0.4973141]
[1723382732853,3.53009742,60436.0,60435.0,0.4973141]
[1723382734042,3.46296294,60436.0,60435.0,0.4973141]
[1723382734263,3.53009853,60436.0,60435.0,0.4973141]
[1723382734735,3.60421808,60436.0,60435.0,0.4973141]
[1723382735159,3.55652862,60436.0,60435.0,0.4973141]
[1723382735388,3.55652862,60436.0,60435.0,0.6107141]
[1723382735626,3.50709853,60436.0,60435.0,0.4973141]
[1723382736104,3.50713417,60436.0,60435.0,0.4973141]
[1723382736326,3.58127731,60436.0,60435.0,0.4973141]
[1723382736977,3.50713417,60436.0,60435.0,0.4973141]
[1723382737214,4.12349909,60436.0,60435.0,0.4973141]
[1723382737424,4.77441507,60436.0,60435.0,0.4973141]
[1723382737632,5.28821669,60436.0,60435.0,0.4973141]
[1723382738057,5.27829548,60436.0,60435.0,0.4973141]
[1723382738480,4.91280187,60436.0,60435.0,0.4973141]
[1723382739635,4.91227838,60436.0,60435.0,0.4973141]
[1723382740303,5.27776488,60436.0,60435.0,0.4973141]
[1723382740521,5.42608778,60436.0,60435.0,0.4973141]
[1723382740993,4.91227955,60436.0,60435.0,0.4973141]
[1723382741213,4.74846463,60436.0,60435.0,0.4973141]
[1723382741447,4.80972408,60436.0,60435.0,0.4973141]
[1723382741659,4.02076362,60436.0,60435.0,0.4973141]
[1723382741869,3.97304257,60436.0,60435.0,0.6107141]
[1723382742077,3.87414512,60436.0,60435.0,0.6107141]
[1723382742305,3.97304257,60436.0,60435.0,0.4973141]
[1723382743503,3.80691532,60436.0,60435.0,0.4973141]
[1723382743719,3.87404116,60436.0,60435.0,0.4973141]
[1723382743931,3.9729755,60436.0,60435.0,0.4973141]
[1723382744139,3.27543878,60436.0,60435.0,0.4973141]
[1723382744362,3.27543878,60436.0,60435.0,0.7018141]
[1723382744363,3.32489765,60436.0,60435.0,0.7018141]
[1723382745481,3.32489765,60436.0,60435.0,0.70131]
[1723382745722,3.31489765,60436.0,60435.0,0.70131]
[1723382746619,3.31561961,60436.0,60435.0,0.70131]
[1723382748153,3.54726961,60436.0,60435.0,0.70131]
[1723382748903,3.31561961,60436.0,60435.0,0.70131]
[1723382749989,3.24860281,60436.0,60435.0,0.70131]
[1723382750200,3.31568945,60436.0,60435.0,0.70131]
[1723382751279,3.49788058,60436.0,60435.0,0.70131]
[1723382752997,3.52088058,60436.0,60435.0,0.49681]
[1723382753247,3.82671535,60436.0,60435.0,0.49681]
[1723382753513,4.24302493,60436.0,60435.0,0.49681]
[1723382753742,4.24303958,60436.0,60435.0,0.49681]
[1723382755372,4.12948424,60436.0,60435.0,0.49681]
[1723382755578,4.11950341,60436.0,60435.0,0.49681]
[1723382756451,4.24302624,60436.0,60435.0,0.49681]
[1723382757539,4.25300946,60436.0,60435.0,0.49681]
[1723382757719,4.24300946,60436.0,60435.0,0.49681]
[1723382761395,4.25300946,60436.0,60435.0,0.49681]
[1723382761595,4.42682438,60436.0,60435.0,0.49681]
[1723382761807,4.51860155,60436.0,60435.0,0.49681]
[1723382763067,4.53860155,60436.0,60435.0,0.49681]
[1723382763279,4.51860155,60436.0,60435.0,0.49681]
[1723382763503,4.53860155,60436.0,60435.0,0.49681]
[1723382763733,4.54024319,60436.0,60435.0,0.49681]
[1723382763996,4.63871319,60436.0,60435.0,0.49681]
[1723382764427,4.54024319,60436.0,60435.0,0.49681]
[1723382764642,4.52024319,60436.0,60435.0,0.49681]
[1723382764885,4.45152682,60436.0,60435.0,0.49681]
[1723382765108,4.8550939,60436.0,60435.0,0.49681]
[1723382765328,4.70682749,60436.0,60435.0,0.49681]
[1723382765547,4.8550939,60436.0,60435.0,0.49681]
[1723382766025,6.43730577,60436.0,60435.0,0.49681]
[1723382766256,5.61748289,60436.0,60435.0,0.231445]
[1723382766477,0.821177,60406.0,60405.0,0.0009141]
[1723382766678,0.97174026,60406.0,60405.0,0.0009141]
[1723382767099,1.05876863,60406.0,60405.0,0.0009141]
[1723382767509,1.04404857,60406.0,60405.0,0.0009141]
[1723382767715,1.03404857,60406.0,60405.0,0.0009141]
[1723382767962,1.22653717,60406.0,60405.0,0.0009141]
[1723382768163,1.57434855,60406.0,60405.0,0.0009141]
[1723382768369,1.94045337,60406.0,60405.0,0.0009141]
[1723382768587,2.42737201,60406.0,60405.0,0.0089141]
[1723382768794,2.55051896,60406.0,60405.0,0.0089141]
[1723382769009,2.53715798,60406.0,60405.0,0.0089141]
[1723382769234,3.80255798,60406.0,60405.0,0.0149141]
[1723382769440,3.69359152,60406.0,60405.0,0.0149141]
[1723382769863,3.69159152,60406.0,60405.0,0.0009141]
[1723382770084,3.68559152,60406.0,60405.0,0.0009141]
[1723382770330,3.70559152,60406.0,60405.0,0.0029141]
[1723382770539,3.29961781,60406.0,60405.0,0.0009141]
[1723382770749,3.31361781,60406.0,60405.0,0.0019141]
[1723382770924,3.32761781,60406.0,60405.0,0.0019141]
[1723382771159,3.31361781,60406.0,60405.0,0.0009141]
[1723382771368,3.28902312,60406.0,60405.0,0.0009141]
[1723382771622,3.30302312,60406.0,60405.0,0.0019141]
[1723382771827,3.28902312,60406.0,60405.0,0.0009141]
[1723382772035,3.03725812,60406.0,60405.0,0.0009141]
[1723382772241,3.04325812,60406.0,60405.0,0.0009141]
[1723382772477,2.99416487,60406.0,60405.0,0.0009141]
[1723382772696,3.00816487,60406.0,60405.0,0.0019141]
[1723382773963,3.00816487,60406.0,60405.0,0.0029141]
[1723382773964,3.02216487,60406.0,60405.0,0.0029141]
[1723382774622,3.02215697,60406.0,60405.0,0.0029141]
[1723382774803,3.00215697,60406.0,60405.0,0.0029141]
[1723382775036,2.93340338,60406.0,60405.0,0.0029141]
[1723382775241,2.85950338,60406.0,60405.0,0.0029141]
[1723382775419,2.83950338,60406.0,60405.0,0.0029141]
[1723382776075,2.85950338,60406.0,60405.0,0.0029141]
[1723382776489,3.45950338,60406.0,60405.0,0.0029141]
[1723382776903,3.75998513,60406.0,60405.0,0.0029141]
[1723382777320,3.92413483,60406.0,60405.0,0.0029141]
[1723382777525,3.92416503,60406.0,60405.0,0.0029141]
[1723382777731,3.76001533,60406.0,60405.0,0.0029141]
[1723382778761,3.76664833,60406.0,60405.0,0.0029141]
[1723382779413,3.74664833,60406.0,60405.0,0.0029141]
[1723382779820,3.51488333,60406.0,60405.0,0.0029141]
[1723382780829,3.44613638,60406.0,60405.0,0.0029141]
[1723382780987,3.53489362,60406.0,60405.0,0.0029141]
[1723382781850,0.579527,60394.0,60393.0,0.1161401]
[1723382782060,0.67137346,60394.0,60393.0,0.1161401]
[1723382782466,0.90318446,60394.0,60393.0,0.1161401]
[1723382783103,0.91218446,60394.0,60393.0,0.1171401]
[1723382783523,0.92118446,60394.0,60393.0,0.1181401]
[1723382787343,0.92118446,60394.0,60393.0,0.002]
[1723382793376,0.92118446,60394.0,60393.0,0.0029141]
[1723382794469,0.98994293,60394.0,60393.0,0.0029141]
[1723382795772,0.98994293,60394.0,60393.0,0.4996541]
[1723382795997,0.17860493,60394.0,60393.0,0.7085541]
[1723382796202,0.45756246,60394.0,60393.0,0.7085541]
[1723382796416,0.75812566,60394.0,60393.0,0.7085541]
[1723382796610,0.68937346,60394.0,60393.0,0.7085541]
[1723382796831,0.98093644,60394.0,60393.0,0.7075541]
[1723382797046,0.97193644,60394.0,60393.0,0.5910541]
[1723382797460,0.97793644,60394.0,60393.0,0.5920541]
[1723382798075,0.99093644,60394.0,60393.0,0.4986541]
[1723382798327,1.41256236,60394.0,60393.0,0.4996541]
[1723382798549,1.73849541,60394.0,60393.0,0.4996541]
[1723382798774,1.71849541,60394.0,60393.0,0.4996541]
[1723382798986,1.58749541,60394.0,60393.0,0.4996541]
[1723382799419,1.56449541,60394.0,60393.0,0.4996541]
[1723382799610,1.16886949,60394.0,60393.0,0.4996541]
[1723382800710,1.16836477,60394.0,60393.0,0.4996541]
[1723382801240,1.16835793,60394.0,60393.0,0.4996541]
[1723382801447,1.81738385,60394.0,60393.0,0.4996541]
[1723382801656,1.88383804,60394.0,60393.0,0.4996541]
[1723382801859,1.78443804,60394.0,60393.0,0.4996541]
[1723382804201,1.65343804,60394.0,60393.0,0.4996541]
[1723382804839,1.65343804,60394.0,60393.0,0.51051569]
[1723382805051,1.65343804,60394.0,60393.0,0.5070654]
[1723382805467,1.65426904,60394.0,60393.0,0.5070654]
[1723382806136,1.78806904,60394.0,60393.0,0.5070654]
[1723382807798,1.78755893,60394.0,60393.0,0.5070654]
[1723382808824,2.28291963,60394.0,60393.0,0.4996541]
[1723382809030,3.83023464,60394.0,60393.0,0.4996541]
[1723382809250,3.73200378,60394.0,60393.0,0.4996541]
[1723382809658,3.54785408,60394.0,60393.0,0.4996541]
[1723382809874,4.80725408,60394.0,60393.0,0.4986541]
[1723382810081,5.45542406,60394.0,60393.0,0.4986541]
[1723382810300,5.44942406,60394.0,60393.0,0.4976541]
[1723382810528,5.08215091,60394.0,60393.0,0.4976541]
[1723382810758,5.26030061,60394.0,60393.0,0.4976541]
[1723382811223,4.87369038,60394.0,60393.0,0.4645381]
[1723382811431,5.1262768,60394.0,60393.0,0.4645381]
[1723382811639,5.1403106,60394.0,60393.0,0.4645381]
[1723382811850,5.06163234,60394.0,60393.0,0.4645381]
[1723382812104,5.16083957,60394.0,60393.0,0.4645381]
[1723382812333,5.16083359,60394.0,60393.0,0.2989581]
[1723382812581,5.16083359,60394.0,60393.0,0.1333781]
[1723382812797,5.14683359,60394.0,60393.0,0.1333781]
[1723382813000,5.14083359,60394.0,60393.0,0.1333781]
[1723382813216,5.14095131,60394.0,60393.0,0.1333781]
[1723382813428,5.14095131,60394.0,60393.0,0.1002621]
[1723382813642,5.16095131,60394.0,60393.0,0.0009141]
[1723382813871,4.99680161,60394.0,60393.0,0.0009141]
[1723382814091,3.7525447,60394.0,60393.0,0.0009141]
[1723382814309,3.61407394,60394.0,60393.0,0.0009141]
[1723382814974,3.61384245,60394.0,60393.0,0.0009141]
[1723382815639,3.49004245,60394.0,60393.0,0.0009141]
[1723382816080,3.23820851,60394.0,60393.0,0.0009141]
[1723382816302,3.13776083,60394.0,60393.0,0.0009141]
[1723382816536,3.13776083,60394.0,60393.0,0.1175141]
[1723382816537,3.03911584,60394.0,60393.0,0.1175141]
[1723382816750,1.46039761,60394.0,60393.0,0.1175141]
[1723382816969,1.39641648,60394.0,60393.0,0.1175141]
[1723382817173,1.39641648,60394.0,60393.0,0.0009141]
[1723382817591,1.48039761,60394.0,60393.0,0.0009141]
[1723382817799,1.48039761,60394.0,60393.0,0.0018282]
[1723382818438,1.50339761,60394.0,60393.0,0.0018282]
[1723382818663,1.52339761,60394.0,60393.0,0.0018282]
[1723382818881,1.50339761,60394.0,60393.0,0.0018282]
[1723382819790,1.40941648,60394.0,60393.0,0.0018282]
[1723382820216,1.45871861,60394.0,60393.0,0.0018282]
[1723382820685,1.40941648,60394.0,60393.0,0.0018282]
[1723382821141,1.40940717,60394.0,60393.0,0.0018282]
[1723382821862,1.4194072,60394.0,60393.0,0.0018282]
[1723382822077,1.4094072,60394.0,60393.0,0.0018282]
[1723382822920,1.4194072,60394.0,60393.0,0.0018282]
[1723382823139,1.4094072,60394.0,60393.0,0.0018282]
[1723382823560,1.77665603,60394.0,60393.0,0.0018282]
[1723382823767,1.89992337,60394.0,60393.0,0.0018282]
[1723382824410,1.98514914,60394.0,60393.0,0.0018282]
[1723382824631,1.99908434,60394.0,60393.0,0.0018282]
[1723382824851,1.91992337,60394.0,60393.0,0.0018282]
[1723382825077,2.45287908,60394.0,60393.0,0.0018282]
[1723382825539,2.51931794,60394.0,60393.0,0.0018282]
[1723382825925,2.76723875,60394.0,60393.0,0.0018282]
[1723382826139,3.43723875,60394.0,60393.0,0.0018282]
[1723382826514,3.45723875,60394.0,60393.0,0.0018282]
[1723382826917,3.43723875,60394.0,60393.0,0.0018282]
[1723382827315,3.45723875,60394.0,60393.0,0.0018282]
[1723382827874,3.43723875,60394.0,60393.0,0.0018282]
[1723382828253,3.30317699,60394.0,60393.0,0.0018282]
[1723382828461,3.45736092,60394.0,60393.0,0.0018282]
[1723382828664,3.45726092,60394.0,60393.0,0.0018282]
[1723382829072,3.62141062,60394.0,60393.0,2e-07]
[1723382829283,0.743122,60384.0,60370.0,0.0937]
[1723382829516,2.12502228,60384.0,60366.0,0.0937]
[1723382829876,2.99407763,60384.0,60366.0,0.0937]
[1723382830098,3.22592663,60384.0,60366.0,0.0937]
[1723382830326,4.49132663,60384.0,60383.0,1e-06]
[1723382830557,4.49132663,60384.0,60351.0,0.0001]
[1723382830558,1.315362,60375.0,60360.0,0.0937]
[1723382830783,1.315362,60375.0,60351.0,0.0001]
[1723382830784,3.57275896,60375.0,60355.0,0.0937]
[1723382831004,3.52500617,60375.0,60355.0,0.0937]
[1723382831229,3.71215587,60375.0,60355.0,0.0937]
[1723382831666,3.18146347,60375.0,60355.0,0.0937]
[1723382831954,3.54821328,60375.0,60355.0,0.0937]
[1723382832408,3.56216267,60375.0,60355.0,0.0937]
[1723382832630,1.547265,60374.0,60373.0,1e-06]
[1723382832841,3.3702787,60374.0,60373.0,1e-06]
[1723382833053,3.62372813,60374.0,60373.0,1e-06]
[1723382833473,3.78787783,60374.0,60373.0,1e-06]
[1723382833683,3.02001494,60374.0,60373.0,1e-06]
[1723382833921,3.42091204,60374.0,60373.0,1e-06]
[1723382834334,3.43491204,60374.0,60373.0,1e-06]
[1723382834542,1.670817,60372.0,60371.0,1e-06]
[1723382834756,2.68448337,60372.0,60371.0,1e-06]
[1723382834971,2.15448337,60372.0,60371.0,1e-06]
[1723382835198,2.27748337,60372.0,60371.0,1e-06]
[1723382835452,2.76721519,60372.0,60371.0,1e-06]
[1723382835688,2.86716337,60372.0,60371.0,1e-06]
[1723382835920,3.18550345,60372.0,60371.0,1e-06]
[1723382836345,3.55256856,60372.0,60371.0,1e-06]
[1723382836570,1.043874,60352.0,60351.0,0.0001]
[1723382836790,1.31912782,60352.0,60351.0,0.0001]
[1723382837308,1.29912782,60352.0,60351.0,0.216]
[1723382837511,1.30912782,60352.0,60351.0,0.216]
[1723382837973,1.24068892,60352.0,60351.0,0.216]
[1723382838240,1.25468892,60352.0,60351.0,0.216]
[1723382838472,1.24068892,60352.0,60351.0,0.216]
[1723382838697,1.25468892,60352.0,60351.0,0.216]
[1723382838936,1.24068892,60352.0,60351.0,0.216]
[1723382839390,1.25468892,60352.0,60351.0,0.216]
[1723382840256,1.26768892,60352.0,60351.0,0.216]
[1723382840702,1.32312564,60352.0,60351.0,0.216]
[1723382840927,1.33312564,60352.0,60351.0,0.0001]
[1723382841141,1.57809764,60352.0,60351.0,0.0001]
[1723382841588,1.55109764,60352.0,60351.0,0.0001]
[1723382841809,1.55109764,60352.0,60351.0,0.0010141]
[1723382842062,1.56509764,60352.0,60351.0,0.0010141]
[1723382842285,1.55109764,60352.0,60351.0,0.0010141]
[1723382842534,1.33714419,60352.0,60351.0,0.2169141]
[1723382842753,1.24568892,60352.0,60351.0,0.2169141]
[1723382842980,0.849902,60352.0,60351.0,0.2169141]
[1723382843431,0.61793,60352.0,60351.0,0.2169141]
[1723382843872,0.038,60352.0,60351.0,0.2169141]
[1723382844121,0.024,60352.0,60351.0,0.38072902]
[1723382844330,0.01,60361.0,60351.0,0.49680302]
[1723382844632,0.01,60361.0,60360.0,0.11797]
[1723382844670,0.01,60368.0,60367.0,0.115957]
[1723382844865,0.01,60367.0,60366.0,0.2226]
[1723382845507,0.01,60368.0,60365.0,0.00331267]
[1723382845741,0.115954,60369.0,60367.0,0.2226]
[1723382845874,0.231896,60372.0,60365.0,0.29288614]
[1723382845875,0.018,60368.0,60365.0,0.29288614]
[1723382846076,0.01,60368.0,60367.0,0.115957]
[1723382846350,0.01,60368.0,60365.0,0.16712759]
[1723382846562,0.01,60368.0,60367.0,0.2226]
[1723382846803,0.125955,60368.0,60367.0,0.2226]
[1723382847027,0.115955,60368.0,60367.0,0.71956]
[1723382847255,0.01,60368.0,60367.0,0.71956]
[1723382847474,0.115953,60369.0,60367.0,0.49696]
[1723382847698,0.115953,60369.0,60368.0,0.2226]
[1723382847939,0.125953,60369.0,60368.0,0.2226]
[1723382848162,0.125953,60369.0,60368.0,0.71955]
[1723382848400,0.34786,60369.0,60368.0,0.71955]
[1723382848614,0.589767,60369.0,60368.0,0.71955]
[1723382848834,0.592767,60369.0,60368.0,0.71955]
[1723382849059,0.591767,60369.0,60368.0,0.71955]
[1723382849288,0.5844373,60369.0,60368.0,0.71955]
[1723382849558,0.5924373,60369.0,60368.0,0.71955]
[1723382849786,0.5894373,60369.0,60368.0,0.71955]
[1723382850003,0.5914373,60369.0,60368.0,0.71955]
[1723382850459,0.6144373,60369.0,60368.0,0.71955]
[1723382850694,0.8463443,60369.0,60368.0,0.59155]
[1723382850959,0.6144373,60369.0,60368.0,0.59155]
[1723382851188,0.6144373,60369.0,60368.0,0.71955]
[1723382851189,0.5934373,60369.0,60368.0,0.71955]
[1723382851411,0.5814373,60369.0,60368.0,0.71955]
[1723382851631,0.5794373,60369.0,60368.0,0.71955]
[1723382851852,0.5804373,60369.0,60368.0,0.71955]
[1723382852081,0.8123443,60369.0,60368.0,0.71955]
[1723382852350,0.8443443,60369.0,60368.0,0.59155]
[1723382852593,0.5794373,60369.0,60368.0,0.59155]
[1723382852798,0.5794373,60369.0,60368.0,0.72055]
[1723382853246,0.5804373,60369.0,60368.0,0.72055]
[1723382853473,0.5904373,60369.0,60368.0,0.72055]
[1723382853926,0.8453443,60369.0,60368.0,0.49795]
[1723382854182,0.8453443,60369.0,60368.0,0.49695]
[1723382854454,1.00915922,60369.0,60368.0,0.49695]
[1723382854688,1.55138195,60369.0,60368.0,0.49695]
[1723382854921,1.55838195,60369.0,60368.0,0.49695]
[1723382855153,1.55037652,60369.0,60368.0,0.49695]
[1723382855373,1.56537652,60369.0,60368.0,0.49795]
[1723382855587,1.55737652,60369.0,60368.0,0.49795]
[1723382855808,1.55737652,60369.0,60368.0,0.49695]
[1723382855809,1.55037652,60369.0,60368.0,0.49695]
[1723382856036,1.56437652,60369.0,60368.0,0.49695]
[1723382856692,1.79628352,60369.0,60368.0,0.49695]
[1723382856910,1.77628352,60369.0,60368.0,0.49695]
[1723382857101,1.79628352,60369.0,60368.0,0.49695]
[1723382857372,1.57837652,60369.0,60368.0,0.49795]
[1723382860171,1.81028352,60369.0,60368.0,0.49795]
[1723382860891,2.09567622,60369.0,60368.0,0.49795]
[1723382861157,2.14929084,60369.0,60368.0,0.49795]
[1723382861377,2.16929084,60369.0,60368.0,0.49795]
[1723382861588,2.09567622,60369.0,60368.0,0.49795]
[1723382862147,2.16929084,60369.0,60368.0,0.49795]
[1723382862374,2.26023938,60369.0,60368.0,0.49795]
[1723382863232,2.16210336,60369.0,60368.0,0.49795]
[1723382863466,2.26023938,60369.0,60368.0,0.49795]
[1723382863932,1.7392088,60369.0,60368.0,0.49795]
[1723382864146,1.41377652,60369.0,60368.0,0.49795]
[1723382864363,1.62537652,60369.0,60368.0,0.49795]
[1723382864574,1.86720006,60369.0,60368.0,0.49795]
[1723382864787,1.85720006,60369.0,60368.0,0.49795]
[1723382865002,1.82927306,60369.0,60368.0,0.49795]
[1723382865213,1.48006606,60369.0,60368.0,0.49795]
[1723382865421,1.48006606,60369.0,60368.0,0.4988641]
[1723382865422,1.43669306,60369.0,60368.0,0.4988641]
[1723382865635,1.50389506,60369.0,60368.0,0.4988641]
[1723382865846,1.4145014,60369.0,60368.0,0.7282641]
[1723382866911,1.25068648,60369.0,60368.0,0.7282641]
[1723382867121,1.00877948,60369.0,60368.0,0.7282641]
[1723382867337,1.04177948,60369.0,60368.0,0.7282641]
[1723382867595,1.04176916,60369.0,60368.0,0.7282641]
[1723382868012,1.02776916,60369.0,60368.0,0.7272641]
[1723382868426,1.02776916,60369.0,60368.0,0.7282641]
[1723382868427,1.04176916,60369.0,60368.0,0.7282641]
[1723382868859,1.02776916,60369.0,60368.0,0.7282641]
[1723382869067,1.04176916,60369.0,60368.0,0.7282641]
[1723382869276,1.20558408,60369.0,60368.0,0.4988641]
[1723382869486,1.19558408,60369.0,60368.0,0.4988641]
[1723382869715,1.42749108,60369.0,60368.0,0.4988641]
[1723382869929,1.20558408,60369.0,60368.0,0.4988641]
[1723382870820,1.42749108,60369.0,60368.0,0.4988641]
[1723382871255,1.43749108,60369.0,60368.0,0.4988641]
[1723382871468,1.42749108,60369.0,60368.0,0.4988641]
[1723382872520,1.58019108,60369.0,60368.0,0.4988641]
[1723382873167,1.56019108,60369.0,60368.0,0.4988641]
[1723382873594,1.58019108,60369.0,60368.0,0.4988641]
[1723382873959,1.65799108,60369.0,60368.0,0.4988641]
[1723382874522,1.90989808,60369.0,60368.0,0.4988641]
[1723382874701,2.23749798,60369.0,60368.0,0.4988641]
[1723382874938,2.00758136,60369.0,60368.0,0.4988641]
[1723382875156,2.33681504,60369.0,60368.0,0.4988641]
[1723382875336,3.04646685,60369.0,60368.0,0.3332141]
[1723382875581,3.04646685,60369.0,60368.0,0.1675641]
[1723382875796,2.81455985,60369.0,60368.0,0.1675641]
[1723382876000,2.88098365,60369.0,60368.0,0.1675641]
[1723382876211,2.81455985,60369.0,60368.0,0.1675641]
[1723382876417,2.81445383,60369.0,60368.0,0.1675641]
[1723382876626,2.85263544,60369.0,60368.0,0.1675641]
[1723382876827,4.11803544,60369.0,60368.0,0.1675641]
[1723382878051,4.11809341,60369.0,60368.0,0.1675641]
[1723382878468,4.20289932,60369.0,60368.0,0.1675641]
[1723382878670,4.11809341,60369.0,60368.0,0.1675641]
[1723382879300,4.20289932,60369.0,60368.0,0.1675641]
[1723382880384,3.94964421,60369.0,60368.0,0.1675641]
[1723382880618,4.11803062,60369.0,60368.0,0.1675641]
[1723382880823,4.20284322,60369.0,60368.0,0.1675641]
[1723382881044,4.20284055,60369.0,60368.0,0.1675641]
[1723382881730,3.28210619,60369.0,60368.0,0.1675641]
[1723382881936,3.17729258,60369.0,60368.0,0.1675641]
[1723382882146,3.27564356,60369.0,60368.0,0.1675641]
[1723382882362,4.00564356,60369.0,60368.0,0.1675641]
[1723382882871,4.11289549,60369.0,60368.0,0.1675641]
[1723382883076,4.21266324,60369.0,60368.0,0.1675641]
[1723382884438,4.05974446,60369.0,60368.0,0.1675641]
[1723382884671,4.27966588,60369.0,60368.0,0.1013041]
[1723382884909,3.83670422,60369.0,60368.0,0.1013041]
[1723382885131,4.13680884,60369.0,60368.0,0.1013041]